Cogmind - Beta 16.1 @@@ ROGUE MODE // 2026.03.10 @ 19:11:19 Player: beans Result: Destroyed by Y-54 Guardian with Gatling Laser Performance ------------- Evolutions (4) 2000 Regions Visited (7) 1400 Robots Destroyed (49) 245 Value Destroyed (1451) 1451 Prototype IDs (3) 60 Alien Tech Used (0) 0 Bonus (700) 700 TOTAL SCORE: 5856 Bonus ------- Pacifist 200 Entered DSFs 500 Cogmind --------- Core Integrity 0/850 Matter 278/300 Energy 99/100 System Corruption 5% Temperature Cool (6) Movement Core (50) Location -6/Extension Parts ------- > --- POWER (2) -------- (None) > --- PROPULSION (4) --- (None) > --- UTILITY (6) ------ Improved Terrain Scan Processor > --- WEAPON (3) ------- Ripper > --- INVENTORY (5) ---- Matter Compressor (59) Matter Compressor (0) Matter Compressor (0) Peak State ------------ > --- POWER ------------ Cooled Ion Engine > --- PROPULSION ------- Improved Carbon-fiber Leg Improved Carbon-fiber Leg Improved Carbon-fiber Leg Improved Carbon-fiber Leg > --- UTILITY ---------- Cooling System Medium Storage Unit Improved Signal Interpreter Improved Terrain Scanner Improved Terrain Scan Processor Hacking Suite > --- WEAPON ----------- Mini Assault Cannon Mini Assault Cannon > --- INVENTORY -------- Improved Carbon-fiber Leg Airjet Cooling System High-capacity Matter Pod High-capacity Matter Pod High-capacity Matter Pod Hacking Suite Heavy Laser Heavy Laser Heavy Rocket Launcher [Rating: 46] Favorites ----------- Power Cooled Ion Engine Engine Cooled Ion Engine Power Core Nuclear Core Propulsion Aluminum Leg Leg Aluminum Leg Hover Unit Airjet Utility Improved Terrain Scan Processor Device Cooling System Storage Medium Storage Unit Processor Improved Terrain Scan Processor Hackware Hacking Suite Weapon Heavy Laser Energy Gun Heavy Laser Energy Cannon Cooled Particle Cannon Ballistic Gun Assault Rifle Ballistic Cannon Mini Assault Cannon Launcher Heavy Rocket Launcher Slashing Weapon Ripper Build | -11 -10 -9 -8 -7 -7 -6 -6 ------- Run | Yrd Mat Mat Mat Fac DSF Fac Ext Slots Evolved 8 | . . 2 2 2 . 2 . Power 1 | . . . . . . 1 . Propulsion 2 | . . 2 . . . . . Utility 4 | . . . 2 2 . . . Weapon 1 | . . . . . . 1 . Parts Attached 48 | 5 . 7 8 5 13 7 3 Power 5 | 1 . 2 . . 1 1 . Engine 3 | 1 . 2 . . . . . Core 2 | . . . . . 1 1 . Reactor . | . . . . . . . . Propulsion 14 | 2 . 1 3 1 7 . . Treads . | . . . . . . . . Leg 10 | 2 . 1 . . 7 . . Wheel . | . . . . . . . . Hover 4 | . . . 3 1 . . . Flight . | . . . . . . . . Utility 13 | . . 3 3 2 3 1 1 Device 5 | . . 1 1 . 3 . . Storage 3 | . . 2 1 . . . . Processor 2 | . . . 1 1 . . . Hackware 3 | . . . . 1 . 1 1 Protection . | . . . . . . . . Artifact . | . . . . . . . . Weapon 16 | 2 . 1 2 2 2 5 2 Energy Gun 3 | . . . 2 . . . 1 Energy Cannon 1 | . . . . 1 . . . Ballistic Gun 8 | 2 . 1 . . . 5 . Ballistic Cannon 2 | . . . . 1 1 . . Launcher 1 | . . . . . 1 . . Special Weapon . | . . . . . . . . Impact Weapon . | . . . . . . . . Slashing Weapon 1 | . . . . . . . 1 Piercing Weapon . | . . . . . . . . Special Melee Weapon . | . . . . . . . . Unidentified Prototypes 3 | . . 1 . 2 . . . Parts Lost 32 | . . 1 1 . 11 16 3 Power 3 | . . . . . 1 2 . Propulsion 9 | . . 1 1 . 6 1 . Utility 10 | . . . . . 3 5 2 Weapon 10 | . . . . . 1 8 1 Highest Loss Streak 12 | . . 1 1 . 7 12 3 To Critical Strikes 1 | . . . . . . 1 . Average Backups 6 | . . 4 7 8 8 6 3 Power . | . . . . . . . . Propulsion . | . . . . . 1 . . Utility 4 | . . 3 7 5 4 3 3 Weapon 1 | . . . . 2 2 2 . Tool/Special . | . . . . . . . . Unused Backups 6 | . . . . . 1 2 3 Power . | . . . . . . . . Propulsion . | . . . . . . . . Utility 6 | . . . . . 1 2 3 Weapon . | . . . . . . . . Tool/Special . | . . . . . . . . Average Slot Usage (%) 71 | . 71 62 81 84 83 55 16 Engine 6 | . 14 11 9 7 4 . . Leg 11 | . 28 20 9 . 11 9 . Hover 7 | . . . 9 23 8 . . Device 10 | . . 2 15 15 13 12 . Storage 7 | . . 6 11 7 7 3 . Processor 8 | . . . 8 11 15 13 11 Hackware 1 | . . . . 3 4 1 2 Energy Gun 7 | . . . 13 14 7 . . Ballistic Gun 7 | . 28 22 4 . . 7 . Ballistic Cannon 1 | . . . . . 7 2 . Peak Build Rating 46 | 5 5 11 31 36 46 42 16 Average Rating 23 | 3 4 7 23 33 36 31 8 On Entrance 16 | . 5 5 10 30 36 42 7 Avg Prop Armor Cover (%) 9 | . . . . . 9 . . Naked Turns . | . . . . . . . . Heaviest Build 36 | 8 8 21 29 29 32 36 5 Greatest Support 72 | 20 20 20 24 31 72 40 3 Greatest Overweight (x) 5 | . . 1 2 1 5 5 1 Average Overweight (x) . | . . . 1 . . . . Largest Inventory Capacity 10 | 5 5 8 10 10 10 10 5 Average Capacity 8 | 5 5 5 8 10 10 8 5 Most Carried 10 | 2 2 8 10 10 10 8 4 Average Carried 6 | . . 4 7 8 8 6 3 Final Capacity 10 | 5 5 8 10 10 10 5 5 Final Carried 9 | . 1 8 7 9 8 4 3 Class Distribution -------------------- 98% | Mutant Dominant Class ---------------- Mutant | -10/Materials Mutant | -9/Materials Mutant | -8/Materials Mutant | -7/Factory Mutant | -7/DSF Mutant | -6/Factory Mutant | -6/Extension Resources | -11 -10 -9 -8 -7 -7 -6 -6 ----------- Run | Yrd Mat Mat Mat Fac DSF Fac Ext Matter Collected 2081 | 141 . 400 550 105 436 449 . Remotely . | . . . . . . . . Salvage Created 1948 | . . 588 659 105 276 320 . Parts 98 | . . 34 43 . 9 12 . Haulers Intercepted 4 | . . 1 2 1 . . . Recyclers Shooed 3 | . . . 2 1 . . . Parts Field Recycled . | . . . . . . . . Retrieved Matter . | . . . . . . . . Parts Self-Destructed . | . . . . . . . . Prevented . | . . . . . . . . Parts Restored . | . . . . . . . . Kills | -11 -10 -9 -8 -7 -7 -6 -6 ------- Run | Yrd Mat Mat Mat Fac DSF Fac Ext Combat Hostiles Destroyed 32 | . . 9 9 . 9 5 . Guns 25 | . . 9 9 . 2 5 . Cannons 7 | . . . . . 7 . . Classes Destroyed 13 | . . 7 2 . 2 2 . Worker 3 | . . 1 2 . . . . Tunneler 1 | . . 1 . . . . . Hauler 4 | . . 1 2 1 . . . Recycler 4 | . . 1 3 . . . . Operator 1 | . . . 1 . . . . Watcher 4 | . . 2 2 . . . . Swarmer 8 | . . . 6 . 2 . . Grunt 12 | . . 8 . . 2 2 . Duelist 2 | . . . . . . 2 . Sentry 4 | . . 1 3 . . . . Specialist 4 | . . . . . 4 . . Hunter 1 | . . . . . . 1 . Heavy 1 | . . . . . 1 . . Best Kill Streak 6 | . . 6 6 1 4 2 . Combat Bots Only 4 | . . 4 3 . 4 2 . Max Kills in Single Turn 2 | . . 1 2 1 1 1 . Gunslinging 1 | . . . 1 . . . . Exploded . | . . . . . . . . Melee . | . . . . . . . . Uniques/NPCs Destroyed . | . . . . . . . . Combat | -11 -10 -9 -8 -7 -7 -6 -6 -------- Run | Yrd Mat Mat Mat Fac DSF Fac Ext Hostile Shots Fired 371 | . . 54 34 . 144 98 41 Missed 92 | . . 18 9 . 38 14 13 Hits 279 | . . 36 25 . 106 84 28 Melee 22 | . . . . . . 22 . Projectile 257 | . . 36 25 . 106 62 28 Critical Strikes 13 | . . 1 . . 3 8 1 Damage Taken 5120 | . . 459 278 . 2043 1893 447 Core 1719 | . . 106 62 . 697 475 379 Absorbed by Shields . | . . . . . . . . Core Remaining (%) 72 | 100 100 73 88 . . . . Volleys Fired 160 | . . 48 44 8 38 21 1 Largest 3 | . . 2 2 2 2 3 1 Hottest 138 | . . 40 138 138 138 125 81 Shots Fired 317 | . . 96 88 15 73 44 1 Gun 251 | . . 96 88 14 14 38 1 Cannon 65 | . . . . 1 58 6 . Launcher 1 | . . . . . 1 . . Special . | . . . . . . . . Kinetic 212 | . . 96 20 1 58 37 . Thermal 104 | . . . 68 14 14 7 1 Explosive 1 | . . . . . 1 . . Electromagnetic . | . . . . . . . . Robot Hit Streak 14 | . . 10 6 1 14 10 . Robot Miss Streak 3 | . . 3 2 1 2 2 2 Penetration Max 2 | . . . . . . 2 . Secondary Targets 4 | . . 3 1 . . . . Max Gunslinging Chain 1 | . . 1 1 . . . . Shots Hit Robots 189 | . . 58 51 1 44 29 6 Core Hits 87 | . . 28 23 2 16 16 2 Critical Kills 2 | . . . . . . 2 . Critical Parts Destroyed 8 | . . . . . . 8 . Critical Strikes 22 | . . . 5 1 5 10 1 Burn 9 | . . . 5 1 3 . . Destroy 10 | . . . . . . 10 . Blast 2 | . . . . . 2 . . Sever 1 | . . . . . . . 1 Melee Attacks 7 | . . . . . . . 7 Impact . | . . . . . . . . Slashing 7 | . . . . . . . 7 Piercing . | . . . . . . . . Sneak Attacks . | . . . . . . . . Combat Hostiles . | . . . . . . . . Follow-up Attacks . | . . . . . . . . Damage Inflicted 3905 | . . 742 925 188 1191 612 247 Guns 2425 | . . 742 925 188 202 346 22 Cannons 1044 | . . . . . 989 55 . Explosions 208 | . . . . . . 208 . Melee 225 | . . . . . . . 225 Ramming 3 | . . . . . . 3 . Kinetic 2218 | . . 742 181 . 989 306 . Thermal 1459 | . . . 744 188 202 303 22 Explosive . | . . . . . . . . Electromagnetic . | . . . . . . . . Impact . | . . . . . . . . Slashing 225 | . . . . . . . 225 Piercing . | . . . . . . . . Highest Corruption 5 | . . . . . . 5 5 Average Corruption 4 | . . . . . . 4 5 Corruption Purged . | . . . . . . . . Corruption Blocked . | . . . . . . . . Effects 2 | . . . . . . . 2 Message Errors 1 | . . . . . . . 1 Matter Fused 1 | . . . . . . . 1 Overload Shots . | . . . . . . . . Overflow Damage 73 | . . . . . 30 43 . Projectiles 23 | . . . . . 23 . . Explosions 50 | . . . . . 7 43 . Melee . | . . . . . . . . Knockbacks 8 | . . . . . 8 . . Impact . | . . . . . . . . Kinetic 4 | . . . . . 4 . . Secondary 4 | . . . . . 4 . . Self-Inflicted Damage 150 | . . . . . 63 87 . Shots 2 | . . . . . 1 1 . Rammed 3 | . . . . . . 3 . Targets Rammed 3 | . . . . . . 3 . Kicked . | . . . . . . . . Crushed . | . . . . . . . . Highest Temperature 24 | . . 17 5 . . 12 24 Average Temperature 6 | . . 5 3 . . 12 10 Received Heat Transfer 1068 | . . 249 27 . 378 207 207 Siege Activations . | . . . . . . . . Martial Activations . | . . . . . . . . Shielding Activations . | . . . . . . . . Robots Disrupted . | . . . . . . . . Combat Hostiles . | . . . . . . . . Robots Corrupted . | . . . . . . . . Combat Hostiles . | . . . . . . . . Parts Fried . | . . . . . . . . Impact Corruptions . | . . . . . . . . Robots Melted 1 | . . . 1 . . . . Combat Hostiles . | . . . . . . . . Parts Melted 3 | . . . 2 . . 1 . Heat Transferred 3258 | . . . 1813 444 629 335 37 Parts Sabotaged . | . . . . . . . . Parts Stolen . | . . . . . . . . Parts Stripped . | . . . . . . . . Power Chain Reactions . | . . . . . . . . Alert | -11 -10 -9 -8 -7 -7 -6 -6 ------- Run | Yrd Mat Mat Mat Fac DSF Fac Ext Maximum Alert Level . | . . . . . . . . Low Security (%) 100 | 100 100 100 100 100 100 100 100 Level 1 . | . . . . . . . . Level 2 . | . . . . . . . . Level 3 . | . . . . . . . . Level 4 . | . . . . . . . . Level 5 . | . . . . . . . . High Security . | . . . . . . . . Max Security . | . . . . . . . . Sterilizations 1 | . . . . . 1 . . Peak Influence 157 | . . 126 120 15 117 157 55 Initial 60 | . . . 11 5 2 60 55 Average 46 | . . 64 47 1 51 83 22 Influence Increases 1177 | . . 248 320 31 225 353 . Destroy 0b10 Robot/C 640 | . . 180 180 . 180 100 . Destroy 0b10 Robot/NC 90 | . . 30 50 10 . . . Destroy Leader 126 | . . 36 58 2 20 10 . Successful Hack 20 | . . . . 4 . 16 . Disable Machine 90 | . . . 15 15 . 60 . Destroy Structure 46 | . . 2 2 . 10 32 . Lose Combat Pursuer 165 | . . . 15 . 15 135 . Influence Decreases 1177 | . . 219 336 40 112 357 113 Entered New Map 143 | . . . 18 8 2 57 58 Time Decay 739 | . . 209 308 32 . 140 50 Lost Part 290 | . . 10 10 . 110 160 . Lost Ally 5 | . . . . . . . 5 Squads Dispatched 6 | . . . 1 . 3 1 1 Investigation 1 | . . . . . . . 1 Extermination . | . . . . . . . . Reinforcement 4 | . . . . . 3 1 . Assault . | . . . . . . . . Garrison 1 | . . . 1 . . . . Intercept . | . . . . . . . . Searches Triggered . | . . . . . . . . Construction Impeded 1 | . . . . . . 1 . Haulers Reinforced . | . . . . . . . . Active Scanning Responses . | . . . . . . . . Cargo Convoy Interrupts . | . . . . . . . . Stealth | -11 -10 -9 -8 -7 -7 -6 -6 --------- Run | Yrd Mat Mat Mat Fac DSF Fac Ext Distress Signals 2 | . . 1 1 . . . . Communications Jammed . | . . . . . . . . Distress Signals . | . . . . . . . . Times Spotted 71 | . . 13 19 . 21 13 5 Peak Tracking Total 6 | . . 6 5 . 6 6 5 Tactical Retreats 6 | . . . 1 . 1 4 . Traps | -11 -10 -9 -8 -7 -7 -6 -6 ------- Run | Yrd Mat Mat Mat Fac DSF Fac Ext Traps Triggered 4 | . . . . . 2 2 . Indirectly . | . . . . . . . . Trap Hack Attempts . | . . . . . . . . Triggered . | . . . . . . . . Disarmed . | . . . . . . . . Reprogrammed . | . . . . . . . . Reused . | . . . . . . . . Traps Extracted . | . . . . . . . . Installed . | . . . . . . . . Triggered . | . . . . . . . . Machines | -11 -10 -9 -8 -7 -7 -6 -6 ---------- Run | Yrd Mat Mat Mat Fac DSF Fac Ext Machines Disabled 7 | . . . 1 1 1 4 . Max in Single Turn 4 | . . . 1 1 1 4 . Machines Repaired . | . . . . . . . . Machines Dismantled . | . . . . . . . . Machines Sabotaged . | . . . . . . . . Overloaded Fab Kills . | . . . . . . . . Hacking | -11 -10 -9 -8 -7 -7 -6 -6 --------- Run | Yrd Mat Mat Mat Fac DSF Fac Ext Machines Accessed 5 | . 1 . . 1 . 1 2 Terminals 4 | . . . . 1 . 1 2 Fabricators . | . . . . . . . . Repair Stations 1 | . 1 . . . . . . Recycling Units . | . . . . . . . . Scanalyzers . | . . . . . . . . Garrison Access . | . . . . . . . . Total Hacks 9 | . 1 . . 3 . 1 4 Successful 3 | . . . . 1 . 1 1 Failed 6 | . 1 . . 2 . . 3 Catastrophic 2 | . . . . . . . 2 Database Lockouts . | . . . . . . . . Manual . | . . . . . . . . Terminals 8 | . . . . 3 . 1 4 Fabricators . | . . . . . . . . Repair Stations 1 | . 1 . . . . . . Recycling Units . | . . . . . . . . Scanalyzers . | . . . . . . . . Garrison Access . | . . . . . . . . Terminal Hacks 3 | . . . . 1 . 1 1 Part Schematic 1 | . . . . . . 1 . Open Door 1 | . . . . . . . 1 Open DSF 1 | . . . . 1 . . . Fabricator Hacks . | . . . . . . . . Repair Station Hacks . | . . . . . . . . Recycling Unit Hacks . | . . . . . . . . Scanalyzer . | . . . . . . . . Garrison Access Hacks . | . . . . . . . . Unauthorized Hacks . | . . . . . . . . Terminals . | . . . . . . . . Fabricators . | . . . . . . . . Repair Stations . | . . . . . . . . Recycling Units . | . . . . . . . . Scanalyzers . | . . . . . . . . Garrison Access . | . . . . . . . . Data Cores Recovered 1 | . . . 1 . . . . Used . | . . . . . . . . Hacking Detections 4 | . 1 . . . . 1 2 Full Trace Events 1 | . . . . . . . 1 Feedback Events . | . . . . . . . . Feedback Blocked . | . . . . . . . . Robot Schematics Acquired . | . . . . . . . . Robots Built . | . . . . . . . . Authchips . | . . . . . . . . Time . | . . . . . . . . Total Robot Build Rating . | . . . . . . . . Part Schematics Acquired 1 | . . . . . . 1 . Parts Built . | . . . . . . . . Authchips . | . . . . . . . . Time . | . . . . . . . . Total Part Build Rating . | . . . . . . . . Part Studies Acquired . | . . . . . . . . Parts Repaired . | . . . . . . . . Time . | . . . . . . . . Parts Recycled . | . . . . . . . . Recycled Matter . | . . . . . . . . Retrieved Matter . | . . . . . . . . Retrieved Components . | . . . . . . . . Parts Scanalyzed . | . . . . . . . . Part Schematics Acquired . | . . . . . . . . Parts Damaged . | . . . . . . . . Bothacking | -11 -10 -9 -8 -7 -7 -6 -6 ------------ Run | Yrd Mat Mat Mat Fac DSF Fac Ext Used RIF Installer . | . . . . . . . . Robots Hacked . | . . . . . . . . Non-combat . | . . . . . . . . Combat . | . . . . . . . . Robot Hacks Applied . | . . . . . . . . Relay Couplers Released . | . . . . . . . . Fabnet Peak Effective % . | . . . . . . . . Robots Rewired . | . . . . . . . . Allies Hacked . | . . . . . . . . Hacks Repelled . | . . . . . . . . Allies | -11 -10 -9 -8 -7 -7 -6 -6 -------- Run | Yrd Mat Mat Mat Fac DSF Fac Ext Total Allies 1 | . . . . . . . 1 Largest Group 1 | . . . . . . . 1 Highest-Rated Group 31 | . . . . . . . 31 Highest-Rated Ally 31 | . . . . . . . 31 Initial Warlord ECA Mod 9 | . . . . . . 9 9 Total Orders . | . . . . . . . . Ally Attacks 5 | . . . . . . . 5 Total Damage 85 | . . . . . . . 85 Kills . | . . . . . . . . Allies Corrupted . | . . . . . . . . Allies Melted 1 | . . . . . . . 1 Intel | -11 -10 -9 -8 -7 -7 -6 -6 ------- Run | Yrd Mat Mat Mat Fac DSF Fac Ext Active Infowar (turns) 1476 | . . . 789 317 370 . . Terrain 1476 | . . . 789 317 370 . . Robot Analysis Total . | . . . . . . . . Derelict Logs Recovered . | . . . . . . . . Drone Launches . | . . . . . . . . Drone Recoveries . | . . . . . . . . Exploration | -11 -10 -9 -8 -7 -7 -6 -6 ------------- Run | Yrd Mat Mat Mat Fac DSF Fac Ext Turns Passed 2764 | 42 74 516 807 317 566 289 153 Spaces Moved 1308 | 33 60 258 264 182 214 204 93 Core 220 | 10 . . . . 6 111 93 Treads . | . . . . . . . . Legs 790 | 23 60 258 195 . 161 93 . Wheels . | . . . . . . . . Hover 298 | . . . 69 182 47 . . Flight . | . . . . . . . . Fastest Speed 48 | 50 120 120 112 48 112 50 50 Average Speed 124 | 98 120 134 182 104 127 88 51 Slowest Speed 300 | 120 120 190 260 112 300 300 100 Overloaded Moves . | . . . . . . . . Propulsion Burnouts . | . . . . . . . . Robots Hopped . | . . . . . . . . Potential Cave-ins . | . . . . . . . . Cave-ins Triggered . | . . . . . . . . Exploration Rate (%) 22 | 3 13 21 30 5 92 5 13 Regions Visited 7 Branch Regions 1 Pre-discovered Areas . | . . . . . . . . Known Exits Taken 2 | . . . . 1 . 1 . Unknown Exits Taken 4 | 1 1 1 1 . . . . Scrap Searched . | . . . . . . . . Spaces Dug 12 | . . . . . 12 . . Terrain Destroyed 59 | . . . . . 12 47 . Melee . | . . . . . . . . Projectile 2 | . . . . . . 2 . AOE 57 | . . . . . 12 45 . Terrain Rammed . | . . . . . . . . Walls Destroyed . | . . . . . . . . Machines Disabled . | . . . . . . . . Actions | -11 -10 -9 -8 -7 -7 -6 -6 --------- Run | Yrd Mat Mat Mat Fac DSF Fac Ext Total 2124 | 42 62 334 501 294 433 271 187 Wait 499 | . . 5 175 87 136 21 75 Move 1302 | 32 59 257 263 182 213 203 93 Hop . | . . . . . . . . Pick Up 49 | 5 1 12 6 7 11 5 2 Fast Attach 11 | . . 2 1 . 5 3 . Attach 38 | 5 1 2 6 5 9 7 3 Detach 3 | . 1 . . . . 2 . Swap 13 | . . 3 2 2 3 3 . Drop 20 | . . 5 4 3 5 3 . Fire 160 | . . 48 44 8 38 21 1 Melee 7 | . . . . . . . 7 Ram 3 | . . . . . . 3 . Kick . | . . . . . . . . Crush . | . . . . . . . . Escape Stasis 13 | . . . . . 13 . . Rewire 6 | . . . . . . . 6 Trap . | . . . . . . . . Miscellaneous . | . . . . . . . . Route ------- -11/Scrapyard -10/Materials -9/Materials -8/Materials -7/Factory -7/DSF -6/Factory -6/Extension History --------- Turn | Location | Event 7 | -11/Scrapyard | Discovered new exit (range 15) 43 | -11/Scrapyard | Entered Materials 94 | -10/Materials | Discovered new exit (range 15) 117 | -10/Materials | Entered another Materials area 117 | -9/Materials | Evolved 2 slots: Propulsion x2 305 | -9/Materials | Build established: Mutant 479 | -9/Materials | Discovered new exit (range 15) 633 | -9/Materials | Entered another Materials area 633 | -8/Materials | Evolved 2 slots: Utility x2 1182 | -8/Materials | Garrison activated, responded to threat 1272 | -8/Materials | Discovered new exit (range 5) 1440 | -8/Materials | Entered Factory 1440 | -7/Factory | Evolved 2 slots: Utility x2 1757 | -7/Factory | Identified exit to DSF 1757 | -7/Factory | Entered DSF 1795 | -7/DSF | Additional patrols routed to DSF 2137 | -7/DSF | Core integrity fell below 50% 2163 | -7/DSF | Lost 7 parts (1p3n3u) 2178 | -7/DSF | Core integrity fell below 20% 2191 | -7/DSF | Sterilization system engaged 2211 | -7/DSF | Ambient heat levels rising (+10) 2226 | -7/DSF | Ambient heat levels rising (+10) 2241 | -7/DSF | Ambient heat levels rising (+10) 2256 | -7/DSF | Ambient heat levels rising (+10) 2271 | -7/DSF | Ambient heat levels rising (+10) 2286 | -7/DSF | Ambient heat levels rising (+10) 2288 | -7/DSF | Discovered new exit (range 15) 2301 | -7/DSF | Ambient heat levels rising (+10) 2316 | -7/DSF | Ambient heat levels rising (+10) 2322 | -7/DSF | Identified exit to Factory 2323 | -7/DSF | Entered Factory 2323 | -6/Factory | Evolved 2 slots: Power x1, Weapon x1 2574 | -6/Factory | Lost 12 parts (2p1n3u6w) 2606 | -6/Factory | Core integrity fell below 50% 2607 | -6/Factory | Discovered new exit (range 11) 2611 | -6/Factory | Identified exit to Extension 2612 | -6/Factory | Entered Extension 2699 | -6/Extension | Rescued a captive Derelict 2733 | -6/Extension | Core integrity fell below 20% 2761 | -6/Extension | Lost 3 parts (2u1w) 2765 | -6/Extension | Destroyed by Y-54 Guardian with Gatling Laser Last Messages --------------- ALERT: Suspicious activity at Terminal E006. Dispatching Investigation squad. Connecting with Door Terminal... >>Open(Door) Sealed Heavy Doors opened. PB-JE0(g): "You know, I actually felt safe in there. No one shooting at me. No one firing rockets in my general direction. And no Assembled." Y-54 Guardian suffers critical hit (Burn). =8UBS,6I VDA0EBM L0CDG<7UFMCKZF, Attempting to rewire 8D-G26(l). Acquired Hvy. Beamcaster. System Shield destroyed. Hvy. Beamcaster destroyed. Attempting to rewire 8D-G26(l). Imp. Signal Interpreter destroyed. Acquired Ripper. G-50 Soldier Hvy. Laser severed. Critical hit (Burn: +37). Map ----- +----------------------------------------------------+ | | | | | | | | | | | | | | | | | | | | | | | | | | | | | | | | | | | ?????????????????????????????????????????????????? | | ?????????????????????????????????????????????????? | | ?????????????????????????????????????????????????? | | ?????????????????????????????????????????????????? | | ????????????????????????###########??????????????? | | ????????????????????????#YY #?????????????? | | ???????????###??????????#[##### #?????????????? | | ???????????# #??????????# #??????????????????????? | | ???????????# ##?????????#@#??????????????????????? | | ???????????# T#?????????#g#??????????????????????? | | ############ ############ # #???????????????? | | + [* #???????????????? | | ######### % ####/##### #???????????????? | | ????????# # #????????????????????????? | | ????????# / / #????????????????????????? | | ????????###+###### #????????????????????????? | | ?????????# T????# / #????????????????????????? | | ?????????##"#????# / #????????????????????????? | | ?????????????????# #????????????????????????? | | ?????????????????########????????????????????????? | | ?????????????????????????????????????????????????? | | ?????????????????????????????????????????????????? | | ?????????????????????????????????????????????????? | | ?????????????????????????????????????????????????? | | ?????????????????????????????????????????????????? | | ?????????????????????????????????????????????????? | | ?????????????????????????????????????????????????? | | ?????????????????????????????????????????????????? | | ?????????????????????????????????????????????????? | | ?????????????????????????????????????????????????? | | ?????????????????????????????????????????????????? | | ?????????????????????????????????????????????????? | | ?????????????????????????????????????????????????? | +----------------------------------------------------+ Best States ------------- Heat Dissipation 97 Energy Generation 18 Energy Capacity 280 Matter Stores 302 Matter Capacity 500 Sight Range 16 Terrain Scan Range 16 Terrain Scan Density 110 Evasion (%) 55 Offensive Hacking 10 Defensive Hacking 10 Item Schematics ----------------- Shield Leg | -6/Factory | Hacked Robot Schematics ------------------ None Fabricated ------------ Nothing Repaired ---------- Nothing Studied --------- None Alien Tech Used ----------------- None Achievements -------------- None Challenges ------------ None Game ------ Seed ArmorLaunchPerforator Manual? 0 Play Time 00:20:43 Cumulative 248.4 hours Start 2026.03.10 @ 18:52:12 End 2026.03.10 @ 19:11:19 Sessions 1 Manual Loads 0 Difficulty Rogue Special Mode None Game No. 672 Rogue 670 Adventurer 2 Explorer 0 Win Type - Total 0 Types 0/0/0/0/0/0/0/0/0/0 Lore% 66 Gallery% 62 Achievement% 41 Wizard Run 0 Options --------- Layout 1 ASCII 0 Keyboard 0 Movement Mouse Keybinds 0 Fullscreen 1 Font 24/Smallcaps Map View 50x35 Zoom Use 0% Tactical HUD 0 Map Filters NONE Filters NONE Steam 1 RUN: 629dd927-7766-4fa3-a9fd-71e2062b8224